fUST/lending_fUST_20241008
["ID","MTS","AMOUNT","RATE_DAILY","PERIOD"]
[340021929,1728334276271,-500.0,0.00038904,120]
[340021930,1728334276279,-500.0,0.00038904,120]
[340021931,1728334276290,-500.0,0.00038904,120]
[340021932,1728334276299,-500.0,0.00038904,120]
[340021933,1728334276308,-500.0,0.00038904,120]
[340021934,1728334276318,-500.0,0.00038904,120]
[340021935,1728334276327,-611.81,0.00038904,120]
[340021936,1728334276337,-500.0,0.00038904,120]
[340021937,1728334276346,-500.0,0.00038904,120]
[340021938,1728334276355,-500.0,0.00038904,120]
[340021939,1728334276366,-500.0,0.00038904,120]
[340021940,1728334276375,-500.0,0.00038904,120]
[340021941,1728334276385,-500.0,0.00038904,120]
[340021942,1728334276395,-500.0,0.00038904,120]
[340021943,1728334276405,-679.62,0.00038904,120]
[340021944,1728334276414,-500.0,0.00038904,120]
[340021945,1728334276423,-500.0,0.00038904,120]
[340021946,1728334276432,-500.0,0.00038904,120]
[340021947,1728334276443,-500.0,0.00038904,120]
[340021948,1728334276452,-769.77,0.00038904,120]
[340021949,1728334276462,-500.0,0.00038904,120]
[340021950,1728334276471,-500.0,0.00038904,120]
[340021951,1728334276480,-944.22,0.00038904,120]
[340021952,1728334276489,-500.0,0.00038904,120]
[340021953,1728334276498,-514.42,0.00038904,120]
[340021954,1728334276508,-500.0,0.00038904,120]
[340021955,1728334276517,-500.0,0.00038904,120]
[340021956,1728334276527,-500.0,0.00038904,120]
[340021957,1728334276536,-677.66,0.00038904,120]
[340021958,1728334276546,-500.0,0.00038904,120]
[340021959,1728334276555,-514.31056151,0.00038904,120]
[340021960,1728334276564,-10035.21,0.00038904,18]
[340021961,1728334276574,-700.93,0.00038904,120]
[340021962,1728334276583,-500.0,0.00038904,120]
[340021963,1728334276592,-668.35722887,0.00038971,2]
[340021964,1728334276601,-160.0,0.00038999,4]
[340021965,1728334276611,-160.0,0.00038999,5]
[340021966,1728334276620,-160.0,0.00038999,5]
[340021967,1728334276629,-27607.21774654,0.00039,2]
[340021968,1728334276637,-2000.0,0.00039,7]
[340021969,1728334276647,-206.36233873,0.00039,7]
[340021970,1728334276655,-150.0,0.00039,30]
[340021971,1728334276664,-310.05699869,0.00039,120]
[340021972,1728334276673,-229.0,0.00039,2]
[340021973,1728334276683,-229.0,0.00039,2]
[340021974,1728334276692,-229.0,0.00039,2]
[340021975,1728334276711,-152.0,0.00039035,15]
[340021976,1728334276720,-7692.07458484,0.00039175,2]
[340021977,1728334276730,-1557.94,0.00039178,120]
[340021978,1728334276739,-500.0,0.00039178,120]
[340021979,1728334276748,-500.0,0.00039178,120]
[340021980,1728334276757,-500.0,0.00039178,120]
[340021981,1728334276766,-500.0,0.00039178,120]
[340021982,1728334276775,-500.0,0.00039178,120]
[340021983,1728334276783,-500.0,0.00039178,120]
[340021984,1728334276793,-500.0,0.00039178,120]
[340021985,1728334276801,-500.0,0.00039178,120]
[340021986,1728334276810,-500.0,0.00039178,120]
[340021987,1728334276820,-500.0,0.00039178,120]
[340021988,1728334276829,-500.0,0.00039178,120]
[340021989,1728334276838,-500.0,0.00039178,120]
[340021990,1728334276847,-878.3,0.00039178,120]
[340021991,1728334276856,-500.0,0.00039178,120]
[340021992,1728334276865,-500.0,0.00039178,120]
[340021993,1728334276875,-500.0,0.00039178,120]
[340021994,1728334276886,-500.0,0.00039178,120]
[340021995,1728334276895,-377.20116481,0.00039178,120]
[340021996,1728334276906,-502.99470206,0.00039178,120]
[340021997,1728334276915,-545.39,0.00039178,120]
[340021998,1728334276924,-500.0,0.00039178,120]
[340021999,1728334276933,-603.96,0.00039178,120]
[340022000,1728334276943,-477.97469159,0.00039178,120]
[340022001,1728334276952,-500.0,0.00039178,120]
[340022002,1728334276961,-500.0,0.00039178,120]
[340022003,1728334276970,-500.0,0.00039178,120]
[340022004,1728334276980,-500.0,0.00039178,120]
[340022005,1728334276989,-500.0,0.00039178,120]
[340022006,1728334276998,-500.0,0.00039178,120]
[340022007,1728334277008,-500.0,0.00039178,120]
[340022008,1728334277018,-561.04581265,0.00039178,120]
[340022009,1728334277027,-500.0,0.00039178,120]
[340022010,1728334277036,-500.0,0.00039178,120]
[340022011,1728334277045,-500.0,0.00039178,120]
[340022012,1728334277054,-501.29324894,0.00039178,120]
[340022013,1728334277063,-500.0,0.00039178,120]
[340022014,1728334277194,-500.0,0.00039178,90]
[340022015,1728334277204,-500.0,0.00039178,120]
[340022016,1728334277215,-500.79533484,0.00039178,120]
[340022017,1728334277226,-500.0,0.00039178,120]
[340022018,1728334277235,-500.0,0.00039178,120]
[340022019,1728334277246,-500.0,0.00039178,120]
[340022020,1728334277256,-500.0,0.00039178,120]
[340022021,1728334277266,-179.88358,0.00039178,120]
[340022022,1728334277278,-500.0,0.00039178,120]
[340022023,1728334277289,-800.19,0.00039178,120]
[340022024,1728334277300,-500.0,0.00039178,120]
[340022025,1728334277310,-612.59615039,0.00039178,120]
[340022026,1728334277320,-524.08097263,0.00039178,120]
[340022027,1728334277331,-751.04,0.00039178,120]
[340022028,1728334277342,-500.0,0.00039178,7]
[340022029,1728334277353,-500.0,0.00039178,120]
[340022030,1728334277363,-500.0,0.00039178,120]
[340022031,1728334277375,-500.0,0.00039178,120]
[340022032,1728334277385,-501.47174304,0.00039178,120]
[340022033,1728334277396,-500.0,0.00039178,120]
[340022034,1728334277407,-451.22325164,0.00039178,120]
[340022035,1728334277416,-641.46810496,0.00039178,120]
[340022036,1728334277426,-501.53463725,0.00039178,120]
[340022037,1728334277435,-500.0,0.00039178,120]
[340022038,1728334277445,-841.21,0.00039178,120]
[340022039,1728334277456,-500.0,0.00039178,120]
[340022040,1728334277465,-500.0,0.00039178,120]
[340022041,1728334277475,-500.0,0.00039178,120]
[340022042,1728334277484,-500.0,0.00039178,120]
[340022043,1728334277494,-500.0,0.00039178,120]
[340022044,1728334277503,-500.0,0.00039178,20]
[340022045,1728334277513,-500.0,0.00039178,60]
[340022046,1728334277523,-500.0,0.00039178,120]
[340022047,1728334277532,-500.0,0.00039178,120]
[340022048,1728334277542,-500.0,0.00039178,120]
[340022049,1728334277551,-500.0,0.00039178,120]
[340022050,1728334277561,-500.0,0.00039178,120]
[340022051,1728334277570,-500.0,0.00039178,7]
[340022052,1728334277580,-500.0,0.00039178,120]
[340022053,1728334277590,-500.0,0.00039178,120]
[340022054,1728334277599,-500.0,0.00039178,120]
[340022055,1728334277608,-500.0,0.00039178,120]
[340022056,1728334277618,-500.0,0.00039178,120]
[340022057,1728334277629,-500.0,0.00039178,120]
[340022058,1728334277639,-500.0,0.00039178,30]
[340022059,1728334277650,-500.90684882,0.00039178,120]
[340022060,1728334277660,-500.0,0.00039178,120]
[340022061,1728334277669,-612.78,0.00039178,120]
[340022062,1728334277679,-503.55230339,0.00039178,120]
[340022063,1728334277688,-500.0,0.00039178,120]
[340022064,1728334277699,-500.0,0.00039178,120]
[340022065,1728334277709,-500.0,0.00039178,120]
[340022066,1728334277718,-500.0,0.00039178,120]
[340022067,1728334277728,-635.37171395,0.00039178,120]
[340022068,1728334277737,-500.0,0.00039178,120]
[340022069,1728334277747,-500.0,0.00039178,120]
[340022070,1728334277756,-589.28,0.00039178,120]
[340022071,1728334277766,-500.0,0.00039178,120]
[340022072,1728334277775,-500.0,0.00039178,120]
[340022073,1728334277785,-500.0,0.00039178,120]
[340022074,1728334277795,-509.76097615,0.00039178,120]
[340022075,1728334277804,-557.3,0.00039178,120]
[340022076,1728334277814,-500.0,0.00039178,120]
[340022077,1728334277823,-500.0,0.00039178,120]
[340022078,1728334277833,-400.566052,0.00039178,120]
[340022079,1728334277842,-562.41983349,0.00039178,120]
[340022080,1728334277852,-500.0,0.00039178,120]
[340022081,1728334277862,-500.0,0.00039178,120]
[340022082,1728334277871,-500.0,0.00039178,120]
[340022083,1728334277880,-500.0,0.00039178,120]
[340022084,1728334277890,-500.0,0.00039178,120]
[340022085,1728334277899,-500.0,0.00039178,120]
[340022086,1728334277909,-500.0,0.00039178,120]
[340022087,1728334277918,-500.0,0.00039178,120]
[340022088,1728334277928,-500.0,0.00039178,120]
[340022089,1728334277937,-500.0,0.00039178,120]
[340022090,1728334277948,-500.0,0.00039178,120]
[340022091,1728334277957,-500.0,0.00039178,120]
[340022092,1728334277966,-534.68999115,0.00039178,120]
[340022093,1728334277975,-500.0,0.00039178,120]
[340022094,1728334277986,-273.70415629,0.00039178,7]
[340022095,1728334277997,-500.0,0.00039178,120]
[340022096,1728334278007,-176.30422199,0.00039178,120]
[340022097,1728334278016,-500.0,0.00039178,120]
[340022098,1728334278027,-500.0,0.00039178,120]
[340022099,1728334278037,-500.0,0.00039178,120]
[340022100,1728334278048,-500.0,0.00039178,120]
[340022101,1728334278058,-628.40396926,0.00039178,120]
[340022102,1728334278068,-500.0,0.00039178,120]
[340022103,1728334278077,-949.88,0.00039178,120]
[340022104,1728334278087,-660.6,0.00039178,120]
[340022105,1728334278097,-500.0,0.00039178,120]
[340022106,1728334278109,-500.0,0.00039178,120]
[340022107,1728334278119,-754.75,0.00039178,120]
[340022108,1728334278129,-500.0,0.00039178,120]
[340022109,1728334278138,-150.0,0.00039178,120]
[340022110,1728334278147,-500.0,0.00039178,2]
[340022111,1728334278157,-500.0,0.00039178,120]
[340022112,1728334278168,-500.0,0.00039178,120]
[340022113,1728334278178,-500.0,0.00039178,120]
[340022114,1728334278188,-500.0,0.00039178,120]
[340022115,1728334278200,-818.47,0.00039178,120]
[340022116,1728334278210,-500.0,0.00039178,120]
[340022117,1728334278219,-503.35261112,0.00039178,120]
[340022118,1728334278229,-500.0,0.00039178,120]
[340022119,1728334278238,-500.0,0.00039178,120]
[340022120,1728334278248,-550.91,0.00039178,120]
[340022121,1728334278258,-591.67472309,0.00039178,120]
[340022122,1728334278267,-500.0,0.00039178,120]
[340022123,1728334278277,-500.0,0.00039178,120]
[340022124,1728334278288,-501.33657541,0.00039178,120]
[340022125,1728334278298,-500.0,0.00039178,120]
[340022126,1728334278309,-500.0,0.00039178,120]
[340022127,1728334278318,-500.0,0.00039178,120]
[340022128,1728334278329,-625.1,0.00039178,120]
[340022129,1728334278339,-500.0,0.00039178,120]
[340022130,1728334278349,-914.39,0.00039178,120]
[340022131,1728334278359,-500.0,0.00039178,120]
[340022132,1728334278370,-500.0,0.00039178,120]
[340022133,1728334278380,-500.0,0.00039178,120]
[340022134,1728334278389,-500.0,0.00039178,120]
[340022135,1728334278398,-500.0,0.00039178,120]
[340022136,1728334278408,-500.0,0.00039178,120]
[340022137,1728334278418,-500.0,0.00039178,120]
[340022138,1728334278428,-500.0,0.00039178,120]
[340022139,1728334278438,-500.0,0.00039178,120]
[340022140,1728334278450,-500.0,0.00039178,120]
[340022141,1728334278460,-500.0,0.00039178,120]
[340022142,1728334278470,-500.0,0.00039178,120]
[340022143,1728334278481,-253.69385696,0.00039178,120]
[340022144,1728334278491,-500.0,0.00039178,120]
[340022145,1728334278500,-500.0,0.00039178,120]
[340022146,1728334278510,-500.0,0.00039178,120]
[340022147,1728334278519,-500.0,0.00039178,120]
[340022148,1728334278528,-500.0,0.00039178,120]
[340022149,1728334278538,-500.0,0.00039178,120]
[340022150,1728334278548,-500.0,0.00039178,120]
[340022151,1728334278557,-500.0,0.00039178,120]
[340022152,1728334278568,-500.0,0.00039178,120]
[340022153,1728334278577,-500.0,0.00039178,120]
[340022154,1728334278587,-465.47773712,0.00039178,120]
[340022155,1728334278596,-500.0,0.00039178,120]
[340022156,1728334278606,-1000.0,0.00039178,120]
[340022157,1728334278617,-500.0,0.00039178,120]
[340022158,1728334278627,-500.0,0.00039178,120]
[340022159,1728334278638,-500.0,0.00039178,120]
[340022160,1728334278647,-503.19706246,0.00039178,120]
[340022161,1728334278658,-500.0,0.00039178,60]
[340022162,1728334278668,-500.0,0.00039178,120]
[340022163,1728334278679,-1047.98,0.00039178,120]
[340022164,1728334278688,-500.0,0.00039178,120]
[340022165,1728334278698,-500.0,0.00039178,120]
[340022166,1728334278710,-500.0,0.00039178,120]
[340022167,1728334278720,-683.38,0.00039178,120]
[340022168,1728334278732,-500.0,0.00039178,120]
[340022169,1728334278742,-500.0,0.00039178,120]
[340022170,1728334278753,-500.0,0.00039178,120]
[340022171,1728334278763,-1235.61,0.00039178,120]
[340022172,1728334278773,-1137.42,0.00039178,120]
[340022173,1728334278784,-509.97240459,0.00039178,120]
[340022174,1728334278794,-500.0,0.00039178,120]
[340022175,1728334278804,-500.0,0.00039178,120]
[340022176,1728334278815,-500.0,0.00039178,120]
[340022177,1728334278825,-500.0,0.00039178,120]
[340022178,1728334278834,-500.0,0.00039178,120]
[340022179,1728334278844,-309.93249981,0.00039178,120]
[340022180,1728334278855,-500.0,0.00039178,120]
[340022181,1728334278864,-500.72562339,0.00039178,120]
[340022182,1728334278874,-507.16209093,0.00039178,120]
[340022183,1728334278884,-500.0,0.00039178,120]
[340022184,1728334278895,-500.0,0.00039178,120]
[340022185,1728334278903,-500.0,0.00039178,120]
[340022186,1728334278913,-500.0,0.00039178,120]
[340022187,1728334278924,-500.0,0.00039178,120]
[340022188,1728334278935,-500.0,0.00039178,120]
[340022189,1728334278946,-500.0,0.00039178,120]
[340022190,1728334278957,-500.0,0.00039178,120]
[340022191,1728334278968,-500.0,0.00039178,120]
[340022192,1728334278977,-600.24386304,0.00039178,120]
[340022193,1728334278986,-575.41,0.00039178,120]
[340022194,1728334278998,-500.0,0.00039178,120]
[340022195,1728334279008,-500.0,0.00039178,120]
[340022196,1728334279018,-500.0,0.00039178,120]
[340022197,1728334279028,-500.0,0.00039178,120]
[340022198,1728334279038,-500.0,0.00039178,120]
[340022199,1728334279047,-501.6635096,0.00039178,120]
[340022200,1728334279057,-500.0,0.00039178,120]
[340022201,1728334279068,-500.0,0.00039178,120]
[340022202,1728334279079,-489.81356037,0.00039178,120]
[340022203,1728334279089,-500.0,0.00039178,120]
[340022204,1728334279099,-800.54,0.00039178,120]
[340022205,1728334279111,-500.49941749,0.00039178,120]
[340022206,1728334279123,-500.72132516,0.00039178,120]
[340022207,1728334279134,-500.0,0.00039178,120]
[340022208,1728334279144,-709.12,0.00039178,120]
[340022209,1728334279154,-500.0,0.00039178,120]
[340022210,1728334279165,-534.35869887,0.00039178,120]
[340022211,1728334279176,-711.22,0.00039178,120]
[340022212,1728334279186,-502.27755433,0.00039178,120]
[340022213,1728334279196,-500.0,0.00039178,120]
[340022214,1728334279207,-550.77,0.00039178,120]
[340022215,1728334279217,-500.0,0.00039178,120]
[340022216,1728334279227,-501.0034752,0.00039178,120]
[340022217,1728334279236,-500.0,0.00039178,120]
[340022218,1728334279247,-500.0,0.00039178,120]
[340022219,1728334279257,-500.0,0.00039178,120]
[340022220,1728334279266,-744.73,0.00039178,120]
[340022221,1728334279276,-500.0,0.00039178,120]
[340022222,1728334279286,-500.0,0.00039178,120]
[340022223,1728334279296,-750.18,0.00039178,120]
[340022224,1728334279306,-500.0,0.00039178,120]
[340022225,1728334279318,-500.0,0.00039178,120]
[340022226,1728334279329,-500.0,0.00039178,120]
[340022227,1728334279340,-500.0,0.00039178,120]
[340022228,1728334279350,-500.0,0.00039178,120]
[340022229,1728334279361,-500.0,0.00039178,120]
[340022230,1728334279375,-500.0,0.00039178,120]
[340022231,1728334279386,-607.18,0.00039178,120]
[340022232,1728334279397,-1202.82,0.00039178,120]
[340022233,1728334279407,-500.0,0.00039178,120]
[340022234,1728334279418,-500.0,0.00039178,120]
[340022235,1728334279427,-500.0,0.00039178,120]
[340022236,1728334279437,-500.0,0.00039178,120]
[340022237,1728334279447,-500.0,0.00039178,120]
[340022238,1728334279456,-500.0,0.00039178,120]
[340022239,1728334279466,-1170.58,0.00039178,120]
[340022240,1728334279476,-500.0,0.00039178,120]
[340022241,1728334279487,-500.0,0.00039178,120]
[340022242,1728334279496,-500.0,0.00039178,120]
[340022243,1728334279506,-637.28,0.00039178,120]
[340022244,1728334279517,-497.55513448,0.00039178,120]
[340022245,1728334279526,-500.0,0.00039178,120]
[340022246,1728334279536,-379.56272438,0.00039178,120]
[340022247,1728334279547,-500.0,0.00039178,120]
[340022248,1728334279559,-500.0,0.00039178,120]
[340022249,1728334279570,-322.30809861,0.00039178,120]
[340022250,1728334279582,-1008.72,0.00039178,120]
[340022251,1728334279593,-500.0,0.00039178,120]
[340022252,1728334279604,-500.0,0.00039178,120]
[340022253,1728334279615,-500.0,0.00039178,120]
[340022254,1728334279625,-500.0,0.00039178,120]
[340022255,1728334279636,-576.24,0.00039178,120]
[340022256,1728334279647,-500.0,0.00039178,120]
[340022257,1728334279659,-787.72,0.00039178,120]
[340022258,1728334279669,-500.0,0.00039178,7]
[340022259,1728334279682,-500.0,0.00039178,120]
[340022260,1728334279693,-687.3,0.00039178,120]
[340022261,1728334279705,-500.0,0.00039178,120]
[340022262,1728334279716,-500.0,0.00039178,120]
[340022263,1728334279730,-500.0,0.00039178,120]
[340022264,1728334279749,-500.0,0.00039178,120]
[340022265,1728334279759,-917.09,0.00039178,120]
[340022266,1728334279772,-500.0,0.00039178,120]
[340022267,1728334279783,-500.0,0.00039178,120]
[340022268,1728334279795,-500.0,0.00039178,120]
[340022269,1728334279805,-500.0,0.00039178,120]
[340022270,1728334279816,-500.0,0.00039178,120]
[340022271,1728334279827,-500.0,0.00039178,120]
[340022272,1728334279838,-500.0,0.00039178,120]
[340022273,1728334279848,-500.0,0.00039178,120]
[340022274,1728334279865,-1008.32,0.00039178,120]
[340022275,1728334279877,-500.0,0.00039178,120]
[340022276,1728334279888,-308.81415811,0.00039178,120]
[340022277,1728334279898,-1051.57,0.00039178,120]
[340022278,1728334279909,-500.0,0.00039178,120]
[340022279,1728334279919,-500.0,0.00039178,120]
[340022280,1728334279928,-500.0,0.00039178,120]
[340022281,1728334279939,-500.37903406,0.00039178,120]
[340022282,1728334280067,-500.0,0.00039178,120]
[340022283,1728334280079,-677.92,0.00039178,120]
[340022284,1728334280090,-500.0,0.00039178,2]
[340022285,1728334280100,-500.0,0.00039178,120]
[340022286,1728334280115,-529.97,0.00039178,120]
[340022287,1728334280126,-500.0,0.00039178,120]
[340022288,1728334280136,-500.0,0.00039178,10]
[340022289,1728334280145,-1141.57,0.00039178,120]
[340022290,1728334280156,-954.06,0.00039178,120]
[340022291,1728334280165,-500.77367366,0.00039178,120]
[340022292,1728334280175,-500.0,0.00039178,120]
[340022293,1728334280188,-865.56,0.00039178,120]
[340022294,1728334280204,-818.05,0.00039178,120]
[340022295,1728334280214,-500.0,0.00039178,120]
[340022296,1728334280224,-500.0,0.00039178,120]
[340022297,1728334280234,-647.55,0.00039178,120]
[340022298,1728334280244,-607.73518448,0.00039178,120]
[340022299,1728334280253,-500.0,0.00039178,120]
[340022300,1728334280264,-504.35,0.00039178,120]
[340022301,1728334280274,-500.70547127,0.00039178,120]
[340022302,1728334280284,-851.04,0.00039178,120]
[340022303,1728334280294,-500.0,0.00039178,120]
[340022304,1728334280303,-500.0,0.00039178,120]
[340022305,1728334280313,-523.84,0.00039178,120]
[340022306,1728334280324,-757.96,0.00039178,30]
[340022307,1728334280334,-500.0,0.00039178,120]
[340022308,1728334280343,-500.0,0.00039178,120]
[340022309,1728334280353,-563.6,0.00039178,120]
[340022310,1728334280363,-555.29,0.00039178,120]
[340022311,1728334280373,-500.0,0.00039178,120]
[340022312,1728334280382,-500.0,0.00039178,120]
[340022313,1728334280392,-500.0,0.00039178,120]
[340022314,1728334280401,-500.0,0.00039178,120]
[340022315,1728334280411,-500.0,0.00039178,120]
[340022316,1728334280420,-500.0,0.00039178,120]
[340022317,1728334280434,-500.0,0.00039178,120]
[340022318,1728334280456,-500.0,0.00039178,120]
[340022319,1728334280466,-743.56,0.00039178,120]
[340022320,1728334280475,-754.92,0.00039178,120]
[340022321,1728334280485,-1365.58,0.00039178,120]
[340022322,1728334280495,-500.0,0.00039178,120]
[340022323,1728334280504,-511.47352087,0.00039178,120]
[340022324,1728334280514,-500.0,0.00039178,120]
[340022325,1728334280523,-500.0,0.00039178,120]
[340022326,1728334280533,-623.42,0.00039178,120]
[340022327,1728334280543,-500.0,0.00039178,120]
[340022328,1728334280553,-861.29,0.00039178,120]
[340022329,1728334280563,-500.0,0.00039178,2]
[340022330,1728334280573,-500.73643978,0.00039178,120]
[340022331,1728334280583,-500.0,0.00039178,120]
[340022332,1728334280593,-573.92,0.00039178,120]
[340022333,1728334280603,-555.73,0.00039178,120]
[340022334,1728334280612,-500.0,0.00039178,120]
[340022335,1728334280622,-917.57,0.00039178,120]
[340022336,1728334280632,-500.0,0.00039178,120]
[340022337,1728334280642,-500.89278448,0.00039178,120]
[340022338,1728334280652,-500.0,0.00039178,120]
[340022339,1728334280661,-500.0,0.00039178,120]
[340022340,1728334280671,-500.0,0.00039178,120]
[340022341,1728334280680,-500.0,0.00039178,120]
[340022342,1728334280690,-544.85,0.00039178,120]
[340022343,1728334280701,-500.0,0.00039178,120]
[340022344,1728334280711,-571.4,0.00039178,60]
[340022345,1728334280720,-500.0,0.00039178,120]
[340022346,1728334280732,-500.0,0.00039178,120]
[340022347,1728334280743,-719.55,0.00039178,120]
[340022348,1728334280752,-500.0,0.00039178,120]
[340022349,1728334280762,-500.0,0.00039178,120]
[340022350,1728334280772,-640.61,0.00039178,120]
[340022351,1728334280782,-500.53476531,0.00039178,120]
[340022352,1728334280792,-500.0,0.00039178,120]
[340022353,1728334280802,-500.0,0.00039178,120]
[340022354,1728334280811,-918.63,0.00039178,120]
[340022355,1728334280821,-500.0,0.00039178,120]
[340022356,1728334280831,-812.73,0.00039178,120]
[340022357,1728334280840,-500.0,0.00039178,120]
[340022358,1728334280850,-500.0,0.00039178,120]
[340022359,1728334280859,-500.0,0.00039178,120]
[340022360,1728334280869,-500.0,0.00039178,120]
[340022361,1728334280879,-500.0,0.00039178,120]
[340022362,1728334280888,-502.3,0.00039178,120]
[340022363,1728334280897,-500.0,0.00039178,120]
[340022364,1728334280907,-500.0,0.00039178,120]
[340022365,1728334280916,-708.61,0.00039178,120]
[340022366,1728334280927,-500.0,0.00039178,120]
[340022367,1728334280939,-500.0,0.00039178,120]
[340022368,1728334280949,-537.44,0.00039178,120]
[340022369,1728334280960,-500.0,0.00039178,120]
[340022370,1728334280972,-500.0,0.00039178,120]
[340022371,1728334280983,-500.0,0.00039178,120]
[340022372,1728334280994,-610.21,0.00039178,120]
[340022373,1728334281004,-554.6,0.00039178,120]
[340022374,1728334281015,-500.0,0.00039178,120]
[340022375,1728334281026,-500.0,0.00039178,120]
[340022376,1728334281037,-500.0,0.00039178,120]
[340022377,1728334281048,-500.0,0.00039178,120]
[340022378,1728334281059,-500.0,0.00039178,120]
[340022379,1728334281068,-500.0,0.00039178,120]
[340022380,1728334281078,-500.0,0.00039178,120]
[340022381,1728334281088,-500.0,0.00039178,120]
[340022382,1728334281097,-500.0,0.00039178,120]
[340022383,1728334281110,-500.0,0.00039178,120]
[340022384,1728334281120,-500.0,0.00039178,120]
[340022385,1728334281130,-500.0,0.00039178,120]
[340022386,1728334281141,-500.0,0.00039178,120]
[340022387,1728334281150,-500.0,0.00039178,120]
[340022388,1728334281160,-229.93377968,0.00039178,120]
[340022389,1728334281170,-432.05295394,0.00039178,120]
[340022390,1728334281180,-500.0,0.00039178,120]
[340022391,1728334281189,-760.72,0.00039178,120]
[340022392,1728334281199,-505.93,0.00039178,120]
[340022393,1728334281208,-500.0,0.00039178,120]
[340022394,1728334281217,-500.0,0.00039178,120]
[340022395,1728334281226,-500.0,0.00039178,120]
[340022396,1728334281236,-500.0,0.00039178,120]
[340022397,1728334281245,-579.67,0.00039178,120]
[340022398,1728334281255,-500.0,0.00039178,120]
[340022399,1728334281265,-500.0,0.00039178,120]
[340022400,1728334281275,-508.67953406,0.00039178,120]
[340022401,1728334281284,-500.0,0.00039178,120]
[340022402,1728334281293,-500.0,0.00039178,120]
[340022403,1728334281302,-581.9378297,0.00039178,120]
[340022404,1728334281311,-699.58,0.00039178,120]
[340022405,1728334281320,-909.57,0.00039178,120]
[340022406,1728334281331,-778.22,0.00039178,120]
[340022407,1728334281340,-500.0,0.00039178,120]
[340022408,1728334281349,-288.78285826,0.00039178,120]
[340022409,1728334281358,-1176.62,0.00039178,120]
[340022410,1728334281367,-500.0,0.00039178,120]
[340022411,1728334281377,-538.25,0.00039178,120]
[340022412,1728334281388,-500.0,0.00039178,120]
[340022413,1728334281399,-500.0,0.00039178,120]
[340022414,1728334281409,-628.45,0.00039178,120]
[340022415,1728334281422,-500.0,0.00039178,120]
[340022416,1728334281432,-500.88223685,0.00039178,120]
[340022417,1728334281442,-500.0,0.00039178,120]
[340022418,1728334281452,-500.0,0.00039178,30]
[340022419,1728334281461,-500.0,0.00039178,120]
[340022420,1728334281471,-799.02,0.00039178,120]
[340022421,1728334281480,-500.0,0.00039178,120]
[340022422,1728334281491,-578.64128561,0.00039178,120]
[340022423,1728334281502,-600.65229069,0.00039178,120]
[340022424,1728334281512,-500.0,0.00039178,120]
[340022425,1728334281522,-1344.11,0.00039178,21]
[340022426,1728334281532,-500.0,0.00039178,120]
[340022427,1728334281543,-500.0,0.00039178,120]
[340022428,1728334281553,-500.0,0.00039178,120]